bitfinex/quotes_ETHUSD_20250602
["timestamp","ask_amount","ask_price","bid_price","bid_amount"]
[1748842339930,2.40577664,2494.0,2493.3,0.7667]
[1748842340188,2.40582569,2494.0,2493.4,2.40635277]
[1748842340466,3.40794298,2493.9,2493.4,2.40634997]
[1748842340961,2.40600795,2493.8,2493.3,0.7667]
[1748842341149,2.40600795,2493.8,2493.3,3.17310201]
[1748842341355,3.40789796,2493.9,2493.3,3.17310201]
[1748842341969,3.40789796,2493.9,2493.4,2.40634893]
[1748842342164,4.085,2493.8,2493.4,2.40634893]
[1748842342468,4.085,2493.8,2493.3,3.17312553]
[1748842342672,4.085,2493.8,2493.4,2.40634613]
[1748842342973,4.085,2493.8,2493.3,0.7667]
[1748842343164,4.085,2493.8,2493.1,0.01]
[1748842343165,8.0,2493.6,2493.1,0.01]
[1748842343350,2.4065458,2493.2,2493.1,0.01]
[1748842344295,3.5298458,2493.2,2493.1,0.01]
[1748842344984,2.4728458,2493.2,2493.1,0.01]
[1748842345204,3.17758046,2493.2,2493.1,0.01]
[1748842345359,8.31958046,2493.2,2493.1,0.01]
[1748842349498,5.91303466,2493.2,2493.1,0.01]
[1748842349876,4.85603466,2493.2,2493.1,0.01]
[1748842350077,7.26258046,2493.2,2493.1,0.01]
[1748842350272,0.77103466,2493.2,2493.1,0.01]
[1748842350498,4.85603466,2493.2,2493.1,0.01]
[1748842351965,8.0,2493.5,2493.1,0.8428]
[1748842352179,4.086,2493.4,2493.1,0.8428]
[1748842352462,1.057,2493.5,2493.1,0.8428]
[1748842352463,2.40618664,2493.6,2493.1,3.2493781]
[1748842352663,4.085,2493.5,2493.1,3.2493781]
[1748842353271,2.40618664,2493.6,2493.1,3.2493781]
[1748842353477,4.085,2493.5,2493.1,3.2493781]
[1748842353665,4.86266332,2493.6,2493.1,3.2493781]
[1748842353866,4.085,2493.5,2493.1,3.2493781]
[1748842354277,2.45647668,2493.6,2493.1,0.8428]
[1748842354477,3.26099999,2493.8,2493.1,3.24936249]
[1748842354680,4.085,2493.7,2493.1,0.8428]
[1748842354883,8.0,2493.6,2493.1,0.8428]
[1748842355092,2.40625938,2493.5,2493.1,0.8428]
[1748842355285,4.38573886,2493.5,2493.1,0.8428]
[1748842355479,2.4065458,2493.2,2493.1,0.01]
[1748842355792,14.5578458,2493.2,2493.1,0.01]
[1748842356194,14.93897047,2493.2,2493.1,0.01]
[1748842357203,16.00597047,2493.2,2493.1,0.01]
[1748842357405,18.21766603,2493.2,2493.1,0.01]
[1748842357789,18.76766603,2493.2,2493.1,0.01]
[1748842358294,18.76766603,2493.2,2492.1,0.01]
[1748842358295,2.40751143,2492.2,2492.1,0.01]
[1748842358495,17.33465705,2492.2,2492.1,0.01]
[1748842361040,18.39265705,2492.2,2492.1,0.01]
[1748842361234,20.47929503,2492.2,2492.1,0.01]
[1748842361606,15.32529503,2492.2,2492.1,0.01]
[1748842361830,20.47929503,2492.2,2492.1,0.01]
[1748842362797,20.47829503,2492.2,2492.1,0.01]
[1748842363000,15.32529503,2492.2,2492.1,0.01]
[1748842363434,20.47829503,2492.2,2492.1,0.01]
[1748842364343,15.32529503,2492.2,2492.1,0.01]
[1748842364519,20.47829503,2492.2,2492.1,0.01]
[1748842364719,20.47729503,2492.2,2492.1,0.01]
[1748842365440,15.32529503,2492.2,2492.1,0.01]
[1748842365601,20.47729503,2492.2,2492.1,0.01]
[1748842366419,15.32529503,2492.2,2492.1,0.01]
[1748842366625,20.47629503,2492.2,2492.1,0.01]
[1748842367452,15.32529503,2492.2,2492.1,0.01]
[1748842367646,20.47629503,2492.2,2492.1,0.01]
[1748842368541,20.47529503,2492.2,2492.1,0.01]
[1748842369519,20.47429503,2492.2,2492.1,0.01]
[1748842370441,15.32529503,2492.2,2492.1,0.01]
[1748842370755,20.47429503,2492.2,2492.1,0.01]
[1748842370914,15.32529503,2492.2,2492.1,0.01]
[1748842371117,20.47429503,2492.2,2492.1,0.01]
[1748842372123,20.47329503,2492.2,2492.1,0.01]
[1748842372655,15.32529503,2492.2,2492.1,0.01]
[1748842373357,20.47329503,2492.2,2492.1,0.01]
[1748842374377,20.53959503,2492.2,2492.1,0.01]
[1748842374854,2.40831985,2491.4,2491.1,0.83]
[1748842375163,2.83114562,2491.2,2491.1,0.83]
[1748842375345,2.83114562,2491.2,2491.1,0.01]
[1748842375346,13.23962346,2491.2,2491.1,0.01]
[1748842378835,12.092,2491.2,2491.1,0.01]
[1748842379036,8.0,2491.2,2491.1,0.01]
[1748842379344,12.092,2491.2,2491.1,0.01]
[1748842379935,12.092,2491.2,2491.1,0.7628]
[1748842380128,0.0663,2491.8,2491.1,0.7628]
[1748842380340,8.0,2491.5,2491.1,0.7628]
[1748842380970,2.83114562,2491.4,2491.1,0.7628]
[1748842381173,5.23945997,2491.4,2491.1,0.7628]
[1748842381375,2.83114562,2491.4,2491.1,0.7628]
[1748842382474,2.4084251,2491.3,2491.1,0.7628]
[1748842383182,6.66922561,2491.4,2491.1,0.7628]
[1748842383479,4.26088267,2491.4,2491.1,0.7628]
[1748842384580,4.091,2491.3,2491.1,0.7628]
[1748842385301,4.091,2491.2,2491.1,0.7628]
[1748842385480,4.091,2491.2,2491.1,0.01]
[1748842385481,10.40665004,2491.2,2491.1,0.01]
[1748842389589,1.07602658,2491.2,2491.1,0.01]
[1748842389793,4.09,2491.2,2491.1,0.01]
[1748842390396,4.089,2491.2,2491.1,0.01]
[1748842391906,9.32862346,2491.2,2491.1,0.01]
[1748842392398,6.92014562,2491.2,2491.1,0.01]
[1748842393167,9.32862346,2491.2,2491.1,0.01]
[1748842393407,11.30231563,2491.2,2491.1,0.01]
[1748842394875,11.36861563,2491.2,2491.1,0.01]
[1748842396414,19.36861563,2491.2,2491.1,0.01]
[1748842397856,12.44847001,2491.2,2491.1,0.01]
[1748842397989,20.42961563,2491.2,2491.1,0.01]
[1748842398191,15.27961563,2491.2,2491.1,0.01]
[1748842398435,20.42961563,2491.2,2491.1,0.01]
[1748842399747,15.27961563,2491.2,2491.1,0.01]
[1748842400047,20.43061563,2491.2,2491.1,0.01]
[1748842405442,20.81245152,2491.2,2491.1,0.01]
[1748842405903,20.74615152,2491.2,2491.1,0.01]
[1748842406103,15.59515152,2491.2,2491.1,0.01]
[1748842406305,17.95583779,2491.2,2491.1,0.01]
[1748842406505,20.36431563,2491.2,2491.1,0.01]
[1748842406831,10.39062346,2491.2,2491.1,0.01]
[1748842407831,18.39062346,2491.2,2491.1,0.01]
[1748842409616,18.77240574,2491.2,2491.1,0.01]
[1748842410317,18.83870574,2491.2,2491.1,0.01]
[1748842411239,18.45692346,2491.2,2491.1,0.01]
[1748842411427,20.79118677,2491.2,2491.1,0.01]
[1748842412137,18.34181911,2491.2,2491.1,0.01]
[1748842412310,21.10666473,2491.2,2491.1,0.01]
[1748842412518,15.95566473,2491.2,2491.1,0.01]
[1748842412838,21.10366473,2491.2,2491.1,0.01]
[1748842414143,20.78453371,2491.2,2491.1,0.01]
[1748842414338,18.4502704,2491.2,2491.1,0.01]
[1748842414544,18.45032379,2491.2,2491.1,0.01]
[1748842415528,21.34776941,2491.2,2491.1,0.01]
[1748842415828,18.51662379,2491.2,2491.1,0.01]
[1748842416552,10.53747817,2491.2,2491.1,0.01]
[1748842416859,20.05894258,2491.2,2491.1,0.01]
[1748842418320,2.40925152,2490.4,2490.3,0.7977]
[1748842418519,2.40944502,2490.2,2490.1,0.8077]
[1748842418956,2.40944502,2490.2,2490.1,0.01]
[1748842419459,13.24059064,2490.2,2490.1,0.01]
[1748842420928,10.83114562,2490.2,2490.1,0.01]
[1748842421461,17.33059064,2490.2,2490.1,0.01]
[1748842422661,19.30458536,2490.2,2490.1,0.01]
[1748842423937,20.36358536,2490.2,2490.1,0.01]
[1748842424261,15.21458536,2490.2,2490.1,0.01]
[1748842424433,20.36358536,2490.2,2490.1,0.01]
[1748842424941,20.42988536,2490.2,2490.1,0.01]
[1748842425928,20.36358536,2490.2,2490.1,0.01]
[1748842426755,18.38959064,2490.2,2490.1,0.01]
[1748842427553,18.39059064,2490.2,2490.1,0.01]
[1748842427864,13.24059064,2490.2,2490.1,0.01]
[1748842428165,18.38959064,2490.2,2490.1,0.01]
[1748842430128,13.24059064,2490.2,2490.1,0.01]
[1748842430739,2.40903736,2490.7,2490.1,0.7887]
[1748842430740,2.40911196,2490.6,2490.1,0.7887]
[1748842430938,8.0,2490.4,2490.1,1.10854161]
[1748842431277,10.40928545,2490.4,2490.1,0.7887]
[1748842431499,2.83114562,2490.3,2490.1,0.7887]
[1748842432097,2.40944502,2490.2,2490.1,0.01]
[1748842433079,10.40944502,2490.2,2490.1,0.01]
[1748842433247,12.77444021,2490.2,2490.1,0.01]
[1748842436989,10.36499519,2490.2,2490.1,0.01]
[1748842437190,12.77444021,2490.2,2490.1,0.01]
[1748842437389,16.86544021,2490.2,2490.1,0.01]
[1748842437586,2.40929295,2490.4,2490.1,0.01]
[1748842437796,3.53419414,2490.8,2490.1,3.21967552]
[1748842438005,4.093,2490.4,2490.1,0.8102]
[1748842438491,9.33343839,2490.4,2490.1,0.8102]
[1748842439198,2.40935106,2490.3,2490.1,0.8102]
[1748842439398,6.92414562,2490.4,2490.1,0.8102]
[1748842439860,5.24040241,2490.4,2490.1,0.8102]
[1748842440061,4.092,2490.3,2490.1,0.8102]
[1748842440493,6.50138914,2490.3,2490.1,0.8102]
[1748842440698,7.67556829,2490.3,2490.1,0.8102]
[1748842440895,6.50138914,2490.3,2490.1,0.8102]
[1748842441458,2.40944502,2490.2,2490.1,0.8102]
[1748842441661,13.24059064,2490.2,2490.1,0.01]
[1748842442165,13.30689064,2490.2,2490.1,0.01]
[1748842442764,13.68813953,2490.2,2490.1,0.01]
[1748842442959,15.70708648,2490.2,2490.1,0.01]
[1748842443201,19.0882321,2490.2,2490.1,0.01]
[1748842444401,2.41031615,2489.3,2489.2,0.7736]
[1748842444628,2.41041298,2489.2,2489.1,0.01]
[1748842445165,11.58509364,2489.2,2489.1,0.01]
[1748842446815,19.57523926,2489.2,2489.1,0.01]
[1748842448898,19.57423926,2489.2,2489.1,0.01]
[1748842452209,14.41623926,2489.2,2489.1,0.01]
[1748842452880,18.51223926,2489.2,2489.1,0.01]
[1748842453540,18.57853926,2489.2,2489.1,0.01]
[1748842454226,18.57853926,2489.2,2488.2,0.7616]
[1748842454227,21.95968488,2489.2,2488.2,0.7616]
[1748842454417,2.83114562,2488.3,2488.2,0.7616]
[1748842454728,6.93014562,2488.3,2488.2,0.7616]
[1748842455339,4.099,2488.3,2488.2,0.7616]
[1748842455634,2.83114562,2488.5,2488.2,0.7616]
[1748842455635,4.098,2488.5,2488.3,2.41123499]
[1748842455826,4.098,2488.5,2488.2,0.7616]
[1748842456357,7.86315992,2488.5,2488.2,0.7616]
[1748842456936,4.098,2488.5,2488.2,3.17293268]
[1748842457136,5.24184914,2488.9,2488.4,0.7708]
[1748842457299,4.103,2488.6,2488.4,0.7708]
[1748842457659,2.41082133,2488.8,2488.4,0.7708]
[1748842457804,4.103,2488.6,2488.4,0.7708]
[1748842458404,4.103,2488.6,2488.4,3.18197765]
[1748842458953,4.102,2488.6,2488.4,3.18197765]
[1748842459514,4.102,2488.6,2488.4,0.7708]
[1748842459724,4.102,2488.6,2488.4,3.18193224]
[1748842460047,4.103,2488.8,2488.6,2.41094114]
[1748842460202,4.103,2488.8,2488.5,3.18845223]
[1748842460545,4.103,2488.8,2488.5,0.7774]
[1748842460955,14.51381987,2488.8,2488.5,0.7774]
[1748842461157,5.24204682,2488.7,2488.5,0.7774]
[1748842461358,4.80672185,2488.7,2488.5,0.7774]
[1748842462359,7.21762868,2488.7,2488.3,0.7629]
[1748842462543,2.41099552,2488.6,2488.3,0.7629]
[1748842462748,7.21764701,2488.7,2488.3,0.7629]
[1748842463057,4.80672185,2488.7,2488.3,3.17417094]
[1748842463414,1.97557623,2488.7,2488.3,3.17417094]
[1748842463614,12.103,2488.8,2488.3,0.7629]
[1748842463916,4.102,2488.7,2488.4,2.41114069]
[1748842464275,4.102,2488.6,2488.3,3.17413807]
[1748842464457,8.0,2488.8,2488.3,0.7629]
[1748842464661,4.102,2488.6,2488.3,3.17418011]
[1748842466373,4.101,2488.6,2488.4,2.41118791]
[1748842466575,8.0,2488.8,2488.6,0.7814]
[1748842466875,4.102,2488.8,2488.6,0.7814]
[1748842467671,7.53874267,2488.8,2488.6,0.7814]
[1748842467871,9.94957211,2488.8,2488.4,0.7814]
[1748842468345,7.53874267,2488.8,2488.4,0.7814]
[1748842468534,9.94954592,2488.8,2488.4,0.7814]
[1748842468734,7.53874267,2488.8,2488.4,3.19258746]
[1748842468936,4.102,2488.7,2488.5,2.41106817]
[1748842469451,2.41065278,2489.0,2488.5,2.41106817]
[1748842469657,4.101,2488.7,2488.5,2.41106817]
[1748842470268,4.101,2488.7,2488.4,3.19254546]
[1748842470471,4.101,2488.7,2488.4,0.7814]
[1748842470854,4.101,2488.7,2488.4,3.19258107]
[1748842471812,2.83114562,2488.8,2488.4,3.19258107]
[1748842471985,4.1,2488.7,2488.5,2.41107674]
[1748842472772,8.0,2488.9,2488.6,2.41099413]
[1748842473085,4.099,2488.7,2488.4,3.19253262]
[1748842473287,4.099,2488.7,2488.5,2.41108773]
[1748842473894,4.099,2488.7,2488.4,3.19255077]
[1748842477597,4.097,2488.8,2488.5,3.2281903]
[1748842478264,4.098,2488.8,2488.6,0.7972]
[1748842479899,1.32417028,2488.9,2488.6,3.20819082]
[1748842480102,4.097,2488.8,2488.6,3.20819082]
[1748842480862,4.097,2488.8,2488.6,0.7972]
[1748842483196,4.095,2488.8,2488.6,0.7972]
[1748842483397,2.83114562,2489.1,2488.6,0.7972]
[1748842483593,4.095,2488.8,2488.6,0.7972]
[1748842484010,8.67385268,2489.3,2488.9,2.4107006]
[1748842484181,0.67385268,2489.3,2489.0,0.8299]
[1748842484501,4.096,2489.3,2489.1,2.41046157]
[1748842484667,4.096,2489.3,2489.0,3.24046517]
[1748842484863,4.096,2489.3,2489.0,0.8299]
[1748842485100,4.096,2489.3,2489.0,3.24049634]
[1748842485485,4.096,2489.3,2489.0,0.8299]
[1748842485907,8.0,2489.5,2489.1,2.41050882]
[1748842486206,4.096,2489.4,2489.1,2.41050882]
[1748842486374,4.096,2489.4,2489.0,0.8299]
[1748842486570,9.57174683,2489.5,2489.1,2.41049977]
[1748842486872,4.096,2489.4,2489.1,2.41049977]
[1748842487099,2.83114562,2489.6,2489.2,2.41041298]
[1748842487299,2.8061467,2489.6,2489.0,0.8299]
[1748842487486,4.096,2489.5,2489.0,0.8299]
[1748842488613,4.096,2489.5,2489.1,2.41045084]
[1748842488989,5.63729232,2489.6,2489.1,2.41045084]
[1748842489325,4.094,2489.5,2489.1,2.41046481]
[1748842490414,3.22719018,2489.6,2489.2,2.4103993]
[1748842490642,7.32019018,2489.6,2489.1,2.41048582]
[1748842491047,7.32019018,2489.6,2489.2,2.41037543]
[1748842491248,2.83114562,2489.6,2489.3,2.41030121]
[1748842491545,2.83114562,2489.6,2489.4,0.828]
[1748842492130,8.0,2489.7,2489.4,3.2382161]
[1748842492440,10.0602024,2490.2,2489.7,3.22227721]
[1748842492645,8.0,2490.1,2489.8,2.40983211]
[1748842492806,3.55769903,2490.2,2489.7,3.2222643]
[1748842493006,7.65069903,2490.2,2489.8,2.40982317]
[1748842493245,7.65069903,2490.2,2489.9,2.4097147]
[1748842493432,8.0,2490.1,2489.9,2.40971395]
[1748842493627,0.72655341,2490.2,2490.0,2.40962267]
[1748842494043,0.72655341,2490.2,2490.0,2.40963084]
[1748842494433,0.72655341,2490.2,2490.0,3.17086111]
[1748842494624,0.72655341,2490.2,2490.1,2.40954178]
[1748842495359,2.83114562,2490.7,2490.2,0.7895]
[1748842495517,5.24017188,2490.7,2490.2,0.7895]
[1748842495709,2.83114562,2490.7,2490.2,3.19890419]
[1748842496837,2.83114562,2490.7,2490.3,2.40930747]
[1748842497531,5.24994924,2490.9,2490.4,2.40924285]
[1748842497847,7.23193405,2490.9,2490.4,2.40924285]
[1748842498034,4.099,2490.8,2490.3,2.40925676]
[1748842498909,9.34794924,2490.9,2490.3,2.40925676]
[1748842499649,2.83114562,2490.7,2490.4,2.40922314]
[1748842499847,2.83114562,2490.8,2490.4,2.40922314]
[1748842500052,2.83114562,2490.8,2490.3,2.40930537]
[1748842500256,5.24020606,2490.6,2490.2,0.7895]
[1748842500560,2.83114562,2490.6,2490.2,0.7895]
[1748842500851,2.40915784,2490.5,2490.2,0.7895]
[1748842501023,6.93214562,2490.4,2489.9,0.7701]
[1748842501221,2.83114562,2490.1,2489.9,0.7701]
[1748842501426,2.83114562,2490.3,2489.9,0.7701]
[1748842502022,5.30681661,2490.3,2489.7,3.1818248]
[1748842502231,2.89744562,2490.3,2489.8,2.40981627]
[1748842503550,2.89744562,2490.3,2490.0,2.40963024]
[1748842503750,4.101,2490.4,2490.0,2.40961144]
[1748842503951,2.89744562,2490.5,2490.0,2.40961144]
[1748842504252,4.103,2490.4,2490.0,2.40961144]
[1748842504558,4.102,2490.4,2490.1,2.40950071]
[1748842504764,6.011865,2490.5,2490.0,3.22401071]
[1748842505052,5.24051171,2490.3,2489.7,0.8144]
[1748842505364,2.83114562,2490.1,2489.7,0.8144]
[1748842505563,5.24071815,2490.1,2489.7,0.8144]
[1748842505714,2.83114562,2490.1,2489.7,0.8144]
[1748842506776,3.60277658,2490.1,2489.7,0.8144]
[1748842506930,4.103,2490.1,2489.8,2.40977466]
[1748842507751,5.24079009,2490.0,2489.4,3.21751932]
[1748842507926,2.83114562,2489.8,2489.4,0.8073]
[1748842508133,2.83114562,2489.8,2489.4,3.21744758]
[1748842508534,2.40975765,2489.9,2489.4,0.8073]
[1748842508753,3.59174376,2489.9,2489.4,3.21751744]
[1748842509859,11.59176022,2489.9,2489.4,0.8073]
[1748842510157,5.2409862,2489.8,2489.4,0.8073]
[1748842510949,2.4099379,2489.7,2489.4,0.8073]
[1748842511654,2.83114562,2489.6,2489.1,0.7757]
[1748842511856,3.11426018,2489.6,2489.1,0.7757]
[1748842512047,9.6273409,2489.6,2489.1,0.7757]
[1748842512656,9.62729147,2489.6,2489.1,0.7757]
[1748842512856,8.0,2489.5,2488.7,0.8185]
[1748842513161,8.0,2489.5,2488.9,2.41065515]
[1748842513365,10.41016894,2489.5,2489.0,2.41060179]
[1748842513533,10.41016894,2489.5,2489.1,0.8185]
[1748842513734,2.41022826,2489.4,2489.1,0.8185]
[1748842513932,12.41390485,2489.5,2489.1,0.8185]
[1748842514263,2.41023074,2489.4,2489.1,0.8185]
[1748842514469,2.41023074,2489.4,2488.9,2.41069223]
[1748842514470,2.83114562,2489.4,2488.8,3.22927216]
[1748842514769,2.41031759,2489.3,2488.8,3.22927216]
[1748842514968,2.83114562,2489.0,2488.5,2.41102245]
[1748842515266,2.83114562,2489.0,2488.7,0.8185]
[1748842515626,6.51756124,2489.1,2488.7,0.8185]
[1748842515833,4.107,2489.1,2488.7,3.22938864]
[1748842517283,4.107,2489.1,2488.7,0.8185]
[1748842517438,6.5175112,2489.1,2488.7,0.8185]
[1748842517936,2.41066909,2489.0,2488.4,2.41110841]
[1748842518164,10.4107833,2488.9,2488.5,0.7558]
[1748842518473,2.83114562,2488.8,2488.3,3.16703395]
[1748842518677,2.41093849,2488.7,2488.3,0.7558]
[1748842518978,2.41089725,2488.7,2488.3,0.7558]
[1748842519138,2.83114562,2488.8,2488.3,0.7558]
[1748842519340,2.83114562,2488.8,2488.3,3.16707857]
[1748842519540,10.4770412,2488.9,2488.4,2.41118048]
[1748842520255,0.0663,2489.2,2488.5,0.04018335]
[1748842520577,2.89744562,2489.9,2488.9,0.8099]
[1748842520779,4.1753,2489.9,2489.4,0.8099]
[1748842520979,10.40983218,2489.8,2489.4,0.8099]
[1748842521167,12.49892578,2489.8,2489.4,0.8099]
[1748842521477,2.40993033,2489.7,2489.4,0.8099]
[1748842521843,10.40993033,2489.7,2489.4,0.8099]
[1748842522048,8.0,2489.7,2489.4,0.8099]
[1748842522385,4.108,2489.8,2489.4,0.8099]
[1748842522891,9.41521717,2489.9,2489.4,0.8099]
[1748842523081,3.35135925,2489.8,2489.4,0.8099]
[1748842523844,0.94152172,2489.8,2489.4,0.8099]
[1748842524294,3.35138348,2489.8,2489.4,0.8099]
[1748842524785,0.94152172,2489.8,2489.4,0.8099]
[1748842525286,3.35137233,2489.8,2489.4,0.8099]
[1748842525496,0.94152172,2489.8,2489.4,0.8099]
[1748842525713,7.45737384,2489.8,2489.4,0.8099]
[1748842526003,2.83114562,2489.5,2489.1,2.41049433]
[1748842526591,5.86598758,2489.7,2489.1,2.41049433]
[1748842526784,3.45601976,2489.7,2489.2,2.41041035]
[1748842527004,0.99718766,2489.6,2489.1,2.41050982]
[1748842527300,4.106,2489.8,2489.3,2.41028963]
[1748842527465,4.106,2489.8,2489.2,0.7658]
[1748842527466,4.106,2489.8,2489.4,2.41017053]
[1748842527784,4.106,2489.8,2489.3,2.41026786]
[1748842528362,4.106,2489.9,2489.2,0.7658]
[1748842528566,8.0,2489.8,2489.2,0.7658]
[1748842529299,8.0,2489.8,2489.3,2.41031615]
[1748842532109,2.83114562,2489.7,2489.3,2.41031615]
[1748842532286,5.24107805,2489.7,2489.2,0.7658]
[1748842533924,2.83114562,2489.5,2488.9,0.7826]
[1748842534121,2.83114562,2489.0,2488.7,0.7826]
[1748842534279,2.83114562,2489.2,2488.8,2.41077802]
[1748842534475,9.41570938,2489.4,2488.9,2.4106652]
[1748842534697,0.94157094,2489.3,2488.9,2.41070137]
[1748842535406,0.94157094,2489.3,2488.7,3.19348164]
[1748842535612,2.41048694,2489.2,2488.7,0.7826]
[1748842535925,2.41051037,2489.1,2488.5,2.41105466]
[1748842536079,2.41051037,2489.1,2488.5,3.17625466]
[1748842536274,2.41051037,2489.1,2488.5,3.17624908]
[1748842536475,5.24183057,2489.0,2488.5,0.7652]
[1748842536997,5.24183057,2489.0,2488.5,3.17628069]
[1748842537305,2.83114562,2489.0,2488.5,3.17628069]
[1748842538409,0.8593642,2489.1,2488.7,2.41088422]
[1748842538611,2.83114562,2489.2,2488.7,2.41088422]
[1748842538912,5.24155948,2489.2,2488.7,2.41088422]
[1748842539302,5.24155948,2489.2,2488.6,2.41094902]
[1748842539712,8.0,2489.3,2488.9,2.41063073]
[1748842540415,8.0,2489.3,2489.0,2.41060594]
[1748842540611,8.0,2489.3,2488.9,2.41065882]
[1748842541246,8.0,2489.3,2488.8,2.4107618]
[1748842542641,8.0,2489.3,2488.9,2.4106941]
[1748842543006,8.0,2489.3,2489.0,2.41059997]
[1748842543540,8.0,2489.3,2488.9,2.41065478]
[1748842544341,2.83114562,2489.4,2488.9,2.41065478]
[1748842544544,2.83114562,2489.4,2489.0,0.7663]
[1748842544710,6.51412375,2489.5,2489.0,0.7663]
[1748842545049,8.49628031,2489.5,2489.0,0.7663]
[1748842545205,2.41024444,2489.4,2489.0,0.7663]
[1748842545624,5.24139006,2489.4,2489.0,0.7663]
[1748842545844,5.24139006,2489.4,2488.9,2.41062608]
[1748842546040,2.41034735,2489.3,2488.8,0.8007]
[1748842546243,3.85043675,2489.3,2488.8,0.8007]
[1748842546428,3.85043675,2489.3,2488.8,3.21149085]
[1748842546429,1.4400894,2489.3,2488.8,3.21149085]
[1748842547724,8.49632908,2489.5,2488.9,2.41068346]
[1748842548252,8.49632908,2489.5,2489.0,2.4105559]
[1748842548618,8.49632908,2489.5,2488.9,2.41064324]
[1748842548946,8.49632908,2489.5,2488.8,0.8007]
[1748842548947,2.83114562,2489.4,2488.8,0.8007]
[1748842549166,0.0663,2489.3,2488.8,3.21148737]
[1748842549320,2.47661697,2489.3,2488.8,3.21148737]
[1748842549522,0.0663,2489.3,2488.8,3.21148737]
[1748842550060,2.83114562,2489.2,2488.7,2.41084861]
[1748842550262,2.83114562,2489.0,2488.6,0.7595]
[1748842550419,5.24177115,2489.0,2488.4,0.7768]
[1748842551158,2.83114562,2489.0,2488.5,2.41104163]
[1748842551546,5.24175951,2489.0,2488.5,2.41104163]
[1748842551751,2.83114562,2489.0,2488.5,2.41104163]
[1748842552274,2.83114562,2489.0,2488.6,2.41096903]
[1748842552660,2.83114562,2489.0,2488.5,2.41104557]
[1748842553074,5.2417553,2489.0,2488.4,0.7768]
[1748842553273,5.2417553,2489.0,2488.5,2.41108578]
[1748842553469,10.41054392,2489.1,2488.6,2.41098969]
[1748842553669,10.99486121,2489.1,2488.6,2.41098969]
[1748842554082,10.99486121,2489.1,2488.5,2.41104285]
[1748842554377,2.41069579,2489.0,2488.5,2.41108334]
[1748842555665,15.09287424,2489.1,2488.5,2.41108334]
[1748842556179,2.41061417,2489.0,2488.5,2.41108334]
[1748842559791,2.41070751,2488.9,2488.4,3.18796513]
[1748842559976,2.47700751,2488.9,2488.4,3.18796513]
[1748842560347,0.0663,2488.9,2488.4,3.18796513]
[1748842561049,0.0663,2488.9,2488.5,2.41107449]
[1748842561980,0.0663,2488.9,2488.4,3.18795601]
[1748842562783,0.0663,2488.9,2488.5,2.41104311]
[1748842566093,0.0663,2488.9,2488.4,3.18794258]
[1748842566298,0.0663,2488.9,2488.6,2.41096924]
[1748842566629,2.41012331,2489.5,2489.0,2.41055973]
[1748842566771,2.41022228,2489.4,2488.9,3.18003855]
[1748842566977,0.93353679,2489.3,2488.8,2.41078946]
[1748842567208,3.76468241,2489.3,2488.8,2.41078946]
[1748842567609,2.47672428,2489.2,2488.7,0.7694]
[1748842567829,0.0663,2489.2,2488.7,2.41083468]
[1748842568612,0.0663,2489.2,2488.8,2.41079787]
[1748842569172,0.0663,2489.5,2489.0,3.16925826]
[1748842569371,4.094,2489.4,2489.0,3.16925826]
[1748842569573,6.50423571,2489.4,2489.0,0.7587]
[1748842569813,6.50423571,2489.4,2488.9,2.41067852]
[1748842570413,6.50423571,2489.4,2488.8,0.8264]
[1748842570414,2.41031765,2489.3,2488.8,3.23716457]
[1748842570627,2.41045118,2489.2,2488.7,2.41089139]
[1748842570836,6.50101846,2489.3,2488.7,2.41089139]
[1748842571521,6.50101846,2489.3,2488.6,3.20658312]
[1748842571721,6.50101846,2489.3,2488.7,2.41080882]
[1748842571927,2.47672253,2489.2,2488.6,0.7956]
[1748842572137,2.83114562,2489.1,2488.6,0.7956]
[1748842572293,0.0663,2488.8,2488.5,4.74]
[1748842572624,0.0663,2488.8,2488.4,3.16293522]
[1748842573188,2.83114562,2488.5,2488.1,0.01]
[1748842573391,0.0663,2488.4,2488.1,0.01]
[1748842573590,9.33081667,2488.8,2488.1,0.838]
[1748842573893,4.098,2488.7,2488.3,2.41125173]
[1748842574325,4.098,2488.7,2488.4,2.4111788]
[1748842574543,4.098,2488.8,2488.1,0.838]
[1748842574825,4.098,2488.8,2488.4,2.41115105]
[1748842575024,0.0663,2488.9,2488.4,2.41114546]
[1748842575230,4.098,2488.8,2488.4,2.41114546]
[1748842575448,4.098,2488.8,2488.3,2.41125573]
[1748842575735,6.92914562,2488.8,2488.3,2.41125573]
[1748842575936,10.52163289,2488.8,2488.2,2.41133452]
[1748842576095,10.52163289,2488.8,2488.1,3.24945437]
[1748842576293,0.0663,2488.6,2488.2,2.41131034]
[1748842576732,0.0663,2488.6,2488.1,3.24944214]
[1748842576931,2.89744562,2488.6,2488.1,3.24944214]
[1748842577295,2.89744562,2488.6,2488.1,2.42144214]
[1748842577695,5.30847756,2488.6,2488.1,2.42144214]
[1748842578134,2.41109467,2488.5,2488.1,0.01]
[1748842578724,6.60838494,2488.6,2488.1,0.01]
[1748842578921,2.41112163,2488.5,2488.1,0.01]
[1748842579219,2.41123789,2488.4,2488.1,0.01]
[1748842579645,2.4775965,2488.3,2488.1,0.01]
[1748842579837,5.30874212,2488.3,2488.1,0.01]
[1748842580152,0.0663,2488.3,2488.1,0.01]
[1748842580529,2.47759186,2488.3,2488.1,0.01]
[1748842580857,4.04957605,2488.3,2488.1,0.01]
[1748842581556,1.63828419,2488.3,2488.1,0.01]
[1748842582562,4.04957319,2488.3,2488.1,0.01]
[1748842582864,5.73728419,2488.3,2488.1,0.01]
[1748842583656,8.14857561,2488.3,2488.1,0.01]
[1748842583859,1.09797212,2488.2,2488.1,0.01]
[1748842584725,3.50935384,2488.2,2488.1,0.01]
[1748842584925,1.09797212,2488.2,2488.1,0.01]
[1748842585422,5.73728419,2488.3,2488.1,0.01]
[1748842586164,8.14857264,2488.3,2488.1,0.01]